[Event "Polish University-ch Open 2024"]
[Site "Lublin"]
[Date "2024.02.24"]
[Round "5.3"]
[White "Suder, Jakub"]
[Black "Psyk, Radoslaw"]
[Result "0-1"]
[ECO "D35"]
[WhiteElo "2333"]
[BlackElo "2461"]
[Annotator "TA"]
[PlyCount "108"]
[EventDate "2024.02.22"]
[EventType "swiss"]
[EventCountry "POL"]
[SourceTitle "playchess.com"]
[Source "ChessBase"]
[SourceQuality "1"]
[TimeControl "600+3"]

{[%evp 26,108,-16,-21,-8,-28,0,0,14,0,0,0,3,0,0,0,0,0,0,0,25,0,39,-14,-21,-14,-12,-16,0,-14,0,-17,-8,-11,0,-34,0,-29,-20,-19,-18,-20,-21,-35,-20,-104,0,0,0,0,0,-11,0,0,-2,-5,0,0,0,0,29,0,0,-18,0,-71,-45,-86,-45,-39,-51,-58,-48,-52,0,-38,-43,-31,-28,-36,-13,-18,-18,-5118,-4998]} 1. d4 {[%emt 0:00:02]} d5 {[%emt 0:00:04]} 2. c4 {[%emt 0:00:01]} e6 {[%emt 0:00:01]} 3. Nc3 {[%emt 0:00:01]} Nf6 {[%emt 0:00:02]} 4. cxd5 {[%emt 0:00:01]} exd5 {[%emt 0:00:03]} 5. Bg5 {[%emt 0:00:01]} c6 {[%emt 0:00:11]} 6. e3 {[%emt 0:00:03]} Be6 {[%emt 0:00:02] D35: Queen's Gambit Declined: Exchange Variation.} 7. h3 {[%emt 0:00:22]} Bd6 $146 {[%emt 0:00:21]} ({Predecessor:} 7... Nbd7 8. Bd3 Bd6 9. Nge2 h6 10. Bf4 Qc7 11. O-O O-O 12. Rc1 a6 13. Qc2 Rfe8 14. Na4 {1-0 Sarana,A (2670)-Tica,S (2451) Titled Tuesday intern op 14th Jun Late blitz 2022 (2)}) 8. Nge2 {[%emt 0:00:20]} h6 {[%emt 0:00:53]} 9. Bf4 {[%emt 0:00:10]} O-O {[%emt 0:00:22]} 10. Qc2 {[%emt 0:00:11]} Na6 {[%emt 0:00:38]} 11. Bxd6 {[%emt 0:00:07]} Qxd6 {[%emt 0:00:02]} 12. Nf4 {[%emt 0:00:05]} Nb4 {[%emt 0:00:33]} 13. Qd2 {[%emt 0:00:09]} Bf5 {[%emt 0:00:02]} 14. Rc1 {[%emt 0:00:01]} Rfe8 {[%emt 0:00:03]} 15. Be2 {[%emt 0:00:45]} a5 {[%emt 0:01:17]} 16. O-O {[%emt 0:00:14]} Re7 {[%emt 0:00:06]} 17. a3 {[%emt 0:00:39]} Na6 {[%emt 0:00:03]} 18. Bd3 {[%emt 0:00:11]} Bxd3 {[%emt 0:00:17]} 19. Nxd3 {[%emt 0:00:05]} Nc7 {[%emt 0:00:11]} 20. Nc5 {[%emt 0:00:34]} Ne6 {[%emt 0:00:08]} 21. N3a4 {[%emt 0:00:40]} Ng5 {[%emt 0:00:03]} 22. Qe2 {[%emt 0:00:39]} Rae8 {[%emt 0:00:14]} 23. Nc3 {[%emt 0:00:12]} g6 {[%emt 0:00:19]} 24. h4 {[%emt 0:00:36]} ({White should try} 24. b4 $14) 24... Ne6 $11 {[%emt 0:00:21]} 25. Nxe6 {[%emt 0:00:09]} Rxe6 {[%emt 0:00:20]} 26. Qf3 {[%emt 0:00:17]} h5 {[%emt 0:00:33]} 27. Ne2 {[%emt 0:00:51]} Ng4 {[%emt 0:00:40]} 28. Qg3 {[%emt 0:00:17]} Qd8 {[%emt 0:00:10]} 29. Nf4 {[%emt 0:00:06]} Re4 {[%emt 0:00:27]} 30. Rce1 {[%emt 0:00:24]} Kh7 {[%emt 0:00:14]} 31. Nh3 {[%emt 0:00:05]} R4e7 {[%emt 0:00:05]} 32. Qf4 {[%emt 0:00:14]} Kg7 {[%emt 0:00:06]} 33. Qg3 {[%emt 0:00:23]} Qb6 {[%emt 0:00:05]} 34. Re2 {[%emt 0:00:19]} Qb5 {[%emt 0:00:26]} 35. Rfe1 {[%emt 0:00:01] [#]} (35. Rc2 $11 {remains equal.}) 35... Nh6 {[%emt 0:00:15]} ({Better is} 35... c5 $1 $17 {[%cal Rc5d4] ...cxd4 is the strong threat.} 36. dxc5 d4) 36. Nf4 $11 {[%emt 0:00:17]} Kh7 {[%emt 0:00:10]} 37. Qg5 {[%emt 0:00:07]} Qb6 {[%emt 0:00:23]} 38. Nd3 {[%emt 0:00:43]} Qd8 {[%emt 0:00:11]} 39. b4 {[%emt 0:00:25]} Qd6 {[%emt 0:00:15]} 40. Qf4 {[%emt 0:00:31]} ({Of course not} 40. bxa5 Ng4 (40... Qxa3 41. Ne5 $15) 41. Ne5 Nxe5 (41... Qxa3 42. Nxg4 hxg4 43. Qxg4 $11) 42. dxe5 Rxe5 $17 (42... Qxe5 43. Qxe5 Rxe5 44. Rb1 $11)) 40... Qd8 {[%emt 0:00:02]} 41. Qg5 {[%emt 0:00:04]} axb4 {[%emt 0:00:09]} 42. axb4 {[%emt 0:00:01]} Qb6 {[%emt 0:00:07]} (42... Nf5 $5) 43. Qf6 {[%emt 0:00:22]} Re6 {[%emt 0:00:22]} 44. Qf4 {[%emt 0:00:02]} Qb5 {[%emt 0:00:04]} 45. Ne5 {[%emt 0:00:05]} (45. Rd2 $11) 45... R6e7 {[%emt 0:00:06]} ({Reject} 45... Qxb4 $6 46. Nxf7 Nxf7 47. Qxf7+ Kh6 48. Ra1 $14) 46. f3 {[%emt 0:00:07]} Qxb4 {[%emt 0:00:08]} 47. g4 {[%emt 0:00:01]} hxg4 {[%emt 0:00:04]} 48. fxg4 {[%emt 0:00:01]} Qd6 {[%emt 0:00:16]} 49. Rf1 {[%emt 0:00:04]} Kg7 {[%emt 0:00:12]} ({Black should play} 49... Rxe5 $15 50. dxe5 Rxe5 (50... Qxe5 51. Qxe5 Rxe5 52. Rb2 $15)) 50. g5 {[%emt 0:00:09]} Nf5 {[%emt 0:00:01]} 51. h5 $1 {[%emt 0:00:00]} Rxe5 {[%emt 0:00:16]} 52. dxe5 {[%emt 0:00:03]} Qxe5 {[%emt 0:00:01]} 53. h6+ {[%emt 0:00:14]} Kh7 {[%emt 0:00:01]} 54. Rb2 $2 {[%emt 0:00:09][%mdl 8192]} (54. Qxe5 $11 Rxe5 55. Kh2) 54... Qxb2 {[%emt 0:00:04]} 0-1

[Event "Polish University-ch Open 2024"]
[Site "Lublin"]
[Date "2024.02.24"]
[Round "5.4"]
[White "Lukasiewicz, Krzysztof"]
[Black "Baum, Jonasz"]
[Result "0-1"]
[ECO "D02"]
[WhiteElo "2290"]
[BlackElo "2400"]
[Annotator "TA"]
[PlyCount "94"]
[EventDate "2024.02.22"]
[EventType "swiss"]
[EventCountry "POL"]
[SourceTitle "playchess.com"]
[Source "ChessBase"]
[SourceQuality "1"]
[TimeControl "600+3"]

{[%evp 16,94,20,8,14,22,22,-11,7,-25,-6,-45,-18,-31,-37,-34,-40,-45,-37,-38,-38,-74,0,-72,34,0,0,0,121,85,111,106,195,64,64,93,110,42,168,-62,-52,-176,-152,-132,28,30,22,14,56,64,90,23,37,23,32,21,57,56,69,0,0,0,0,-16,-22,-22,-23,-62,-64,-543,-506,-506,-336,-1983,-1767,-3032,-1736,-4727,-4714,-4631,-4618]} 1. d4 {[%emt 0:00:01]} Nf6 {[%emt 0:00:02]} 2. Bf4 {[%emt 0:00:01]} d5 {[%emt 0:00:04]} 3. e3 {[%emt 0:00:01]} e6 {[%emt 0:00:01]} 4. Nf3 {[%emt 0:00:02]} c5 {[%emt 0:00:00]} 5. c3 {[%emt 0:00:01]} Nc6 {[%emt 0:00:01]} 6. Nbd2 {[%emt 0:00:02]} cxd4 $1 {[%emt 0:00:02][%mdl 4] outshines the older 6...Bd6.} 7. exd4 {[%emt 0:00:01] D02: 1 d4 d5 2 Nf3 sidelines, including 2...Nf6 3 g3 and 2...Nf6 3 Bf4.} Nh5 {[%emt 0:00:01]} 8. Be3 {[%emt 0:00:05]} Bd6 {[%emt 0:00:01]} 9. Ne5 {[%emt 0:00:14]} Nf6 {[%emt 0:00:01]} 10. f4 {[%emt 0:00:15]} Qb6 {[%emt 0:00:02]} 11. Nd3 {[%emt 0:00:56]} h5 $146 {[%emt 0:02:05]} ({Predecessor:} 11... Ne7 12. Be2 Nf5 13. Bf2 Ne4 14. O-O Nxf2 15. Rxf2 f6 16. Nb3 O-O 17. Qd2 Qc7 {0-1 Levitan,C (2063)-Nemsadze,D (2010) World ol U16 2022 (2.9)}) 12. Qf3 {[%emt 0:01:29]} Bd7 {[%emt 0:00:09]} 13. O-O-O {[%emt 0:00:38]} a5 {[%emt 0:01:18]} 14. Nc5 {[%emt 0:00:38]} a4 {[%emt 0:00:17]} 15. Nxd7 {[%emt 0:00:02]} Kxd7 {[%emt 0:00:18]} 16. f5 {[%emt 0:01:25]} a3 {[%emt 0:01:46]} 17. b3 {[%emt 0:00:09]} Qa5 {[%emt 0:00:02]} 18. Bg5 {[%emt 0:00:07]} Rac8 {[%emt 0:00:48]} (18... e5 $17 {Threatens to win with ...e4.} 19. b4 Qc7 (19... e4 20. bxa5 exf3 21. gxf3 $15)) 19. Kb1 {[%emt 0:00:23]} (19. Bxf6 $11 gxf6 20. Kb1) 19... Ne7 {[%emt 0:01:15]} (19... e5 $1 $17 {[%cal Re5d4]} 20. Bxf6 e4 (20... gxf6 21. b4 $17)) 20. fxe6+ {[%emt 0:00:18]} fxe6 {[%emt 0:00:01]} 21. b4 {[%emt 0:00:35]} Qc7 {[%emt 0:00:24]} (21... Qb6 $11 {remains equal.} 22. Rc1 Rhf8) 22. Rc1 {[%emt 0:00:47]} (22. Bb5+ {keeps more tension.} Nc6 23. Bxf6 gxf6 24. Rhe1) 22... Rcf8 {[%emt 0:00:30]} 23. Bb5+ {[%emt 0:00:07]} Kc8 {[%emt 0:00:47]} (23... Nc6 $16 {was necessary.}) 24. Qe3 {[%emt 0:00:22]} (24. c4 $1 $18 {[%cal Rc4d5] cxd5 would now be deadly.} Kb8 25. c5 (25. Qxa3 dxc4 26. Bxc4 Nc6 $16) 25... Bxh2 26. Rxh2 (26. Qxa3 h4 $16)) 24... Kb8 $1 $14 {[%emt 0:00:00]} 25. Qxe6 {[%emt 0:00:14]} Nc8 {[%emt 0:00:22]} 26. Rhf1 {[%emt 0:00:31]} (26. Rc2 $16) 26... Nb6 {[%emt 0:00:05]} (26... Nh7 $14 27. Be3 (27. Qxd5 $2 Nb6 $19) 27... Rxf1 28. Nxf1 (28. Bxf1 Nf6 $11) 28... Nf6) 27. Nb3 $2 {[%emt 0:00:38]} (27. c4 $1 $18 {[%cal Rc4c5] Hoping for c5.} dxc4 28. Nxc4 Nxc4 29. Rxc4) 27... Ne4 $15 {[%emt 0:00:08]} 28. Bd2 {[%emt 0:00:16] [#]} (28. Rxf8+ $15 Rxf8 29. Bh4) 28... Rxf1 $1 $19 {[%emt 0:00:02]} 29. Bxf1 {[%emt 0:00:01]} Rc8 $2 {[%emt 0:00:08]} ({Black should play} 29... Nxd2+ $17 30. Nxd2 Na4 (30... Bf4 $2 31. Qe1 $19)) 30. Be1 $1 $11 {[%emt 0:00:25]} Bf4 {[%emt 0:00:15]} 31. Rc2 {[%emt 0:00:08]} Bxh2 {[%emt 0:00:03]} 32. Nc5 {[%emt 0:00:12]} Nxc5 {[%emt 0:00:29]} 33. bxc5 {[%emt 0:00:04]} ({Better is} 33. dxc5 $16 Nc4 34. Bd3 (34. Qxd5 Ne3 $17) (34. Bxc4 dxc4 35. Qxc4 g5 $14)) 33... Nc4 $1 $11 {[%emt 0:00:09]} 34. Bxc4 {[%emt 0:00:10]} ({But not} 34. Qxd5 Ne3 35. Qf3 Nxc2 36. Kxc2 Qe7 37. Bg3+ Bxg3 38. Qxg3+ Ka7 $17) 34... dxc4 {[%emt 0:00:01]} 35. Qxc4 {[%emt 0:00:02]} Bg3 {[%emt 0:00:01]} 36. Bd2 {[%emt 0:00:09]} Bf4 {[%emt 0:00:01]} 37. Qb3 {[%emt 0:00:16]} (37. Qf1 $14 g5 38. Bxf4 gxf4 39. Qc1) 37... Bxd2 $11 {[%emt 0:00:03]} 38. Rxd2 {[%emt 0:00:01]} Qf4 {[%emt 0:00:01]} 39. Rc2 {[%emt 0:00:08]} Qf1+ {[%emt 0:00:06]} 40. Rc1 {[%emt 0:00:00]} Qxg2 {[%emt 0:00:01]} 41. Qxa3 {[%emt 0:00:01]} h4 {[%emt 0:00:01]} 42. Qb2 $2 {[%emt 0:00:08][%mdl 8192] [#]} (42. Qa4 $1 $15) 42... Qxb2+ $1 $19 {[%emt 0:00:07]} 43. Kxb2 {[%emt 0:00:01]} h3 {[%emt 0:00:01]} 44. Rh1 $2 {[%emt 0:00:11]} (44. Kc2 g5 45. Kd3) 44... Rh8 $19 {[%emt 0:00:01]} 45. Kc2 {[%emt 0:00:00]} g5 {[%emt 0:00:04]} 46. Kd2 {[%emt 0:00:00]} g4 {[%emt 0:00:01]} 47. Ke2 {[%emt 0:00:00]} g3 {[%emt 0:00:03]} 0-1

[Event "Polish University-ch Open 2024"]
[Site "Lublin"]
[Date "2024.02.24"]
[Round "5.5"]
[White "Dalkowski, Rafal"]
[Black "Kowalski, Igor"]
[Result "0-1"]
[ECO "D17"]
[WhiteElo "2093"]
[BlackElo "2372"]
[Annotator "TA"]
[PlyCount "70"]
[EventDate "2024.02.22"]
[EventType "swiss"]
[EventCountry "POL"]
[SourceTitle "playchess.com"]
[Source "ChessBase"]
[SourceQuality "1"]
[TimeControl "600+3"]

{[%evp 13,70,8,0,-30,-27,-71,-69,-65,-67,-106,-79,-85,-70,-133,-98,-131,-139,-164,-150,-143,-148,-169,-168,-476,-390,-428,-425,-399,-202,-537,-535,-724,-604,-570,-457,-439,-337,-29946,-9220,-3022,-551,-2985,-2866,-2116,-743,-737,-736,-741,-744,-711,-726,-840,-816,-865,-851,-1244,-1204,-5269,-5181]} 1. d4 {[%emt 0:00:02]} d5 {[%emt 0:00:08]} 2. c4 {[%emt 0:00:01]} c6 {[%emt 0:00:00]} 3. Nc3 {[%emt 0:00:02]} Nf6 {[%emt 0:00:01]} 4. Nf3 {[%emt 0:00:02]} dxc4 {[%emt 0:00:02]} 5. a4 {[%emt 0:00:09]} Bf5 {[%emt 0:00:02]} 6. Ne5 {[%emt 0:00:05]} Nbd7 {[%emt 0:00:16]} 7. Nxc4 {[%emt 0:00:03]} Qc7 {[%emt 0:00:00]} 8. e3 {[%emt 0:00:20]} e5 {[%emt 0:00:08]} 9. dxe5 {[%emt 0:00:51]} Nxe5 {[%emt 0:00:01] White must now prevent ...Rd8.} 10. Nxe5 {[%emt 0:00:08] Black is slightly better.} Qxe5 {[%emt 0:00:02]} 11. Qb3 {[%emt 0:00:14] Dodges Bb4} Bd6 {[%emt 0:03:04]} 12. Be2 {[%emt 0:01:44]} O-O {[%emt 0:00:03]} 13. a5 {[%emt 0:00:32]} (13. Qxb7 $15 Rfd8 14. f4) 13... Rab8 {[%emt 0:00:11]} 14. Bd2 {[%emt 0:00:11]} b6 {[%emt 0:00:11]} 15. a6 {[%emt 0:00:29]} b5 {[%emt 0:00:07]} 16. f3 {[%emt 0:00:21]} Bc5 {[%emt 0:00:49] Black is more active.} 17. Nd1 {[%emt 0:00:11]} Rfd8 {[%emt 0:00:14]} 18. Bb4 $2 {[%emt 0:01:10] [#]} (18. Qc3 Qe7 19. Rc1) 18... Bc2 $1 {[%emt 0:02:50][%mdl 512]} 19. Qxc2 {[%emt 0:00:16]} (19. Qc3 Bxb4) 19... Bxb4+ {[%emt 0:00:01]} 20. Kf2 {[%emt 0:00:07]} Bc5 {[%emt 0:00:26]} (20... Rd2 $142 21. Qxc6 Nd5) 21. Rc1 {[%emt 0:00:18] [#]} (21. g3 {is tougher.}) 21... Rxd1 $1 $19 {[%emt 0:00:15][%mdl 512]} 22. Bxd1 {[%emt 0:00:57]} (22. Rcxd1 Qxe3+) 22... Bxe3+ {[%emt 0:00:02] White is weak on the dark squares} 23. Kf1 {[%emt 0:00:02]} Bxc1 {[%emt 0:00:02]} 24. Qxc1 {[%emt 0:00:02]} Re8 {[%emt 0:00:06][%csl Ge8][%cal Re5e1]} 25. Kf2 {[%emt 0:00:12]} (25. Qd2 $19) 25... Qd4+ {[%emt 0:00:02]} 26. Kg3 {[%emt 0:00:21] Black is clearly winning.} Nh5+ {[%emt 0:00:06]} 27. Kh3 {[%emt 0:00:01]} Nf4+ {[%emt 0:00:10]} 28. Kg3 {[%emt 0:00:02] [#]} Re6 {[%emt 0:00:07]} 29. Qxf4 {[%emt 0:00:28]} Rg6+ {[%emt 0:00:01]} ({Worse is} 29... Qxb2 30. Qb8+) 30. Qg4 {[%emt 0:00:01]} Rxg4+ {[%emt 0:00:02]} 31. fxg4 {[%emt 0:00:02]} Qe5+ {[%emt 0:00:03]} 32. Kh3 {[%emt 0:00:04]} Qxb2 {[%emt 0:00:02]} 33. Bf3 {[%emt 0:00:02]} c5 {[%emt 0:00:15] Strongly threatening ...g5.} 34. Rd1 {[%emt 0:00:05]} g5 {[%emt 0:00:48]} 35. Rd7 {[%emt 0:00:33]} Qf2 {[%emt 0:00:07] White got outplayed after the opening.   Weighted Error Value: White=1.25/Black=0.46.  Mistake:       	White=4     	Black=1      Inaccurate:     	White=4     	---        OK:         	White=3     	Black=3      Best:        	White=2     	Black=1      Brilliant:      	---       	Black=1} 0-1

[Event "Polish University-ch Open 2024"]
[Site "Lublin"]
[Date "2024.02.24"]
[Round "5.6"]
[White "Szpar, Milosz"]
[Black "Skurniak, Szymon"]
[Result "1-0"]
[ECO "B22"]
[WhiteElo "2495"]
[BlackElo "2096"]
[Annotator "TA"]
[PlyCount "63"]
[EventDate "2024.02.22"]
[EventType "swiss"]
[EventCountry "POL"]
[SourceTitle "playchess.com"]
[Source "ChessBase"]
[SourceQuality "1"]
[TimeControl "600+3"]

{[%evp 12,63,31,23,41,52,42,42,106,107,193,191,177,195,207,191,179,202,308,325,340,312,273,206,366,333,352,344,362,368,399,372,622,650,729,402,710,660,754,738,1193,1128,1306,1271,2001,1889,29989,29990,29991,29992,29992,29991,29991,29992]} 1. e4 {[%emt 0:00:01]} c5 {[%emt 0:00:08]} 2. c3 {[%emt 0:00:02]} d5 {[%emt 0:00:08]} 3. exd5 {[%emt 0:00:01]} Qxd5 {[%emt 0:00:06]} 4. d4 {[%emt 0:00:02]} Nc6 {[%emt 0:00:02]} 5. Nf3 {[%emt 0:00:01]} Bg4 {[%emt 0:00:20]} 6. dxc5 {[%emt 0:00:14]} Qxd1+ {[%emt 0:00:07]} 7. Kxd1 {[%emt 0:00:02]} e5 {[%emt 0:00:43]} 8. b4 {[%emt 0:01:18][%cal Bb2b4,Bb4b5][%mdl 32]} a5 {[%emt 0:01:33]} 9. b5 {[%emt 0:00:39]} e4 {[%emt 0:00:01]} (9... Nd8 $14) 10. h3 $1 $16 {[%emt 0:00:43]} Ne5 {[%emt 0:00:09]} (10... Bxf3+ $16 {was necessary.} 11. gxf3 Ne5) 11. hxg4 $18 {[%emt 0:00:21]} exf3 {[%emt 0:00:02]} 12. Be3 {[%emt 0:00:51]} Nxg4 {[%emt 0:00:09]} 13. Bd4 {[%emt 0:00:02]} (13. gxf3 Nxe3+ 14. fxe3 Bxc5 $11) 13... O-O-O {[%emt 0:02:48]} 14. Kc2 {[%emt 0:00:04]} (14. gxf3 Nxf2+ 15. Kc2 Rxd4 (15... Nxh1 $2 16. Bh3+ Kb8 17. Nd2 $17) 16. cxd4 Nxh1 $19) 14... Ne7 {[%emt 0:01:59]} (14... Rxd4 {keeps fighting.} 15. cxd4 Nxf2) 15. gxf3 {[%emt 0:00:11]} Nh6 {[%emt 0:00:00]} 16. Rxh6 {[%emt 0:01:11]} Rxd4 {[%emt 0:00:01]} 17. Bh3+ {[%emt 0:00:33]} f5 $2 {[%emt 0:00:04] [#]} (17... Kb8 {might work better.} 18. cxd4 gxh6) 18. cxd4 {[%emt 0:00:16]} gxh6 {[%emt 0:00:01]} 19. Nc3 {[%emt 0:00:20]} Bg7 {[%emt 0:00:01]} 20. Re1 {[%emt 0:00:08]} Kd7 {[%emt 0:00:17]} 21. Na4 {[%emt 0:00:16]} (21. Kd3 Rf8 22. Kc4 Bh8 $18) 21... Nd5 $2 {[%emt 0:00:19] [#]} (21... Rf8 22. c6+ (22. Nb6+ Kd8 $18) 22... bxc6 23. Nc5+ Ke8) 22. Bxf5+ {[%emt 0:00:05]} Kc7 {[%emt 0:00:01]} 23. Kd3 {[%emt 0:00:56]} Rf8 {[%emt 0:00:05]} (23... Rd8 $142 24. Kc4 (24. Bxh7 Nf4+ 25. Kc2 Bf6 $18) 24... Kb8) 24. Be4 {[%emt 0:00:09]} Nb4+ {[%emt 0:00:02]} 25. Kc4 {[%emt 0:00:03]} Nxa2 {[%emt 0:00:18]} 26. d5 {[%emt 0:00:17][%cal Bd4d5,Bd5d6][%mdl 32]} Nb4 {[%emt 0:00:40]} 27. d6+ {[%emt 0:00:11]} Kb8 {[%emt 0:00:00]} 28. c6 {[%emt 0:00:12][%cal Bc5c6,Bc6c7][%mdl 32]} Be5 {[%emt 0:00:11]} 29. c7+ {[%emt 0:00:18] White mates.} Ka7 {[%emt 0:00:08]} 30. b6+ {[%emt 0:00:06]} Ka6 {[%emt 0:00:01]} 31. Nc5+ {[%emt 0:00:06]} Kxb6 {[%emt 0:00:02]} 32. Nd7+ {[%emt 0:00:02] Black did not feel at home in the position after the opening.   Weighted Error Value: White=0.23 (precise) /Black=0.90.  Mistake:       	---       	Black=5      OK:         	White=6     	Black=5      Best:        	White=5     	Black=1      Strong:       	White=1     	---} ({Weaker is} 32. Bxh7 Bxd6 33. Nd7+ Kxc7 34. Nxf8 Bxf8 $18) 1-0

[Event "Polish University-ch Open 2024"]
[Site "Lublin"]
[Date "2024.02.24"]
[Round "5.7"]
[White "Niedbala, Bartlomiej"]
[Black "Karpus, Michal"]
[Result "0-1"]
[ECO "C84"]
[WhiteElo "2382"]
[BlackElo "2243"]
[Annotator "RC"]
[PlyCount "153"]
[EventDate "2024.02.22"]
[EventType "swiss"]
[EventCountry "POL"]
[SourceTitle "playchess.com"]
[Source "ChessBase"]
[SourceQuality "1"]
[TimeControl "600+3"]

1. e4 {[%emt 0:00:01]} e5 {[%emt 0:00:01]} 2. Nf3 {[%emt 0:00:02]} Nc6 {[%emt 0:00:01]} 3. Bb5 {[%emt 0:00:03]} a6 {[%emt 0:00:02]} 4. Ba4 {[%emt 0:00:01]} Nf6 {[%emt 0:00:01]} 5. Nc3 {[%emt 0:00:01]} b5 {[%emt 0:00:13]} 6. Bb3 {[%emt 0:00:02]} Be7 {[%emt 0:00:33]} 7. a4 {[%emt 0:00:17]} Rb8 {[%emt 0:00:33]} 8. axb5 {[%emt 0:00:06]} axb5 {[%emt 0:00:01]} 9. O-O {[%emt 0:00:20]} O-O {[%emt 0:00:08]} 10. d3 {[%emt 0:00:15]} d6 {[%emt 0:00:10]} 11. h3 {[%emt 0:00:03]} Be6 {[%emt 0:00:09]} 12. Nd5 {[%emt 0:00:34]} Bxd5 {[%emt 0:00:27]} 13. exd5 {[%emt 0:00:05]} Nb4 {[%emt 0:00:03]} 14. c4 {[%emt 0:00:26]} Nxd3 {[%emt 0:00:06]} 15. Qxd3 {[%emt 0:00:19]} e4 {[%emt 0:00:03]} 16. Qd1 {[%emt 0:00:10]} exf3 {[%emt 0:00:10]} 17. Qxf3 {[%emt 0:00:02]} bxc4 {[%emt 0:00:05]} 18. Bxc4 {[%emt 0:00:01]} Nd7 {[%emt 0:00:02]} 19. Qd1 {[%emt 0:01:22]} Bf6 {[%emt 0:00:26]} 20. Qc2 {[%emt 0:00:13]} Re8 {[%emt 0:00:42]} 21. Rb1 {[%emt 0:00:55]} Nb6 {[%emt 0:01:17]} 22. Bb3 {[%emt 0:00:55]} Qd7 {[%emt 0:00:30]} 23. Qd3 {[%emt 0:00:19]} Re5 {[%emt 0:01:10]} 24. Bf4 {[%emt 0:00:49]} Qf5 {[%emt 0:00:16]} 25. Qd2 {[%emt 0:00:59]} Re4 {[%emt 0:00:34]} 26. Be3 {[%emt 0:00:07]} Nc4 {[%emt 0:01:04]} 27. Bxc4 {[%emt 0:00:37]} Rxc4 {[%emt 0:00:01]} 28. Rfc1 {[%emt 0:00:55]} Rcb4 {[%emt 0:00:06]} 29. Rc2 {[%emt 0:00:30]} h5 {[%emt 0:01:06]} 30. Qd1 {[%emt 0:00:31]} Rxb2 {[%emt 0:00:24]} 31. Rbxb2 {[%emt 0:00:05]} Rxb2 {[%emt 0:00:01]} 32. Rxc7 {[%emt 0:00:08]} Rb1 {[%emt 0:01:01]} 33. Rc8+ {[%emt 0:00:02]} Kh7 {[%emt 0:00:07]} 34. Rc1 {[%emt 0:00:01]} Rxc1 {[%emt 0:00:04]} 35. Bxc1 {[%emt 0:00:04]} h4 {[%emt 0:00:06]} 36. Be3 {[%emt 0:00:13]} Be5 {[%emt 0:00:01]} 37. Kf1 {[%emt 0:00:10]} Kg8 {[%emt 0:00:10]} 38. Ke2 {[%emt 0:00:07]} Qe4 {[%emt 0:00:00]} 39. Kf1 {[%emt 0:00:01]} Qc4+ {[%emt 0:00:00]} 40. Kg1 {[%emt 0:00:00]} g6 {[%emt 0:00:01]} 41. Bg5 {[%emt 0:00:08]} Kg7 {[%emt 0:00:02]} 42. Be3 {[%emt 0:00:03]} Qe4 {[%emt 0:00:02]} 43. Qb3 {[%emt 0:00:04]} Kf6 {[%emt 0:00:04]} 44. Qb8 {[%emt 0:00:03]} Qxd5 {[%emt 0:00:05]} 45. Qh8+ {[%emt 0:00:05]} Ke7 {[%emt 0:00:10]} 46. Qxh4+ {[%emt 0:00:02]} Bf6 {[%emt 0:00:00]} 47. Qa4 {[%emt 0:00:03]} Be5 {[%emt 0:00:00]} 48. g3 {[%emt 0:00:03]} Qd3 {[%emt 0:00:01]} 49. Kg2 {[%emt 0:00:02]} Ke6 {[%emt 0:00:02]} 50. Qe8+ {[%emt 0:00:02]} Kf6 {[%emt 0:00:01]} 51. Qh8+ {[%emt 0:00:02]} Ke7 {[%emt 0:00:01]} 52. Bg5+ {[%emt 0:00:02]} Kd7 {[%emt 0:00:16]} 53. Qd8+ {[%emt 0:00:02]} Kc6 {[%emt 0:00:00]} 54. Qe8+ {[%emt 0:00:04]} Kc5 {[%emt 0:00:00]} 55. Qxf7 {[%emt 0:00:07]} Bd4 {[%emt 0:00:00]} 56. Qc7+ {[%emt 0:00:03]} Kd5 {[%emt 0:00:00]} 57. Qf7+ {[%emt 0:00:02]} Kc5 {[%emt 0:00:00]} 58. Qc7+ {[%emt 0:00:02]} Kd5 {[%emt 0:00:01]} 59. Qb7+ {[%emt 0:00:01]} Kc5 {[%emt 0:00:03]} 60. Qc8+ {[%emt 0:00:04]} Kd5 {[%emt 0:00:03]} 61. Qg8+ {[%emt 0:00:02]} Kc5 {[%emt 0:00:01]} 62. Qf7 {[%emt 0:00:05]} Qe2 {[%emt 0:00:07]} 63. Bh6 {[%emt 0:00:04]} Qe4+ {[%emt 0:00:03]} 64. Qf3 {[%emt 0:00:02]} Qc2 {[%emt 0:00:02]} 65. Qf8 {[%emt 0:00:04]} Qe4+ {[%emt 0:00:02]} 66. Kh2 {[%emt 0:00:01]} Qe2 {[%emt 0:00:06]} 67. Kg2 {[%emt 0:00:00]} Qe4+ {[%emt 0:00:01]} 68. Qf3 {[%emt 0:00:01]} Qc2 {[%emt 0:00:02]} 69. h4 {[%emt 0:00:01]} d5 {[%emt 0:00:03]} 70. Bf8+ {[%emt 0:00:02]} Kc4 {[%emt 0:00:00]} 71. Qf7 {[%emt 0:00:11]} Qe4+ {[%emt 0:00:02]} 72. Kh2 {[%emt 0:00:03]} Kd3 {[%emt 0:00:01]} 73. Bh6 {[%emt 0:00:03]} Ke2 {[%emt 0:00:02]} 74. Qb7 {[%emt 0:00:07]} Kxf2 {[%emt 0:00:07]} 75. Qf7+ {[%emt 0:00:01]} Qf3 {[%emt 0:00:03]} 76. Qxf3+ {[%emt 0:00:04]} Kxf3 {[%emt 0:00:01]} 77. Bf8 {[%emt 0:00:08]} 0-1